Cogmind - Beta 15 @@@ ROGUE MODE // 2025.07.15 @ 11:35:26 Player: winnking222 Result: Destroyed by B-75 Beast with Heavy Machine Gun Performance ------------- Evolutions (3) 1500 Regions Visited (9) 1800 Robots Destroyed (110) 550 Value Destroyed (3572) 3572 Prototype IDs (16) 320 Alien Tech Used (0) 0 Bonus (422) 422 TOTAL SCORE: 8164 Bonus ------- High Alert Combat Kills 122 Met Data Miner 300 Cogmind --------- Core Integrity 0/700 Matter 300/300 Energy 99/100 System Corruption 0% Temperature Cool (12) Movement Core (50) Location -6/Proximity Caves Parts ------- > --- POWER (1) -------- (None) > --- PROPULSION (4) --- (None) > --- UTILITY (5) ------ Targeting Computer > --- WEAPON (3) ------- Scythe > --- INVENTORY (5) ---- Light Nuclear Core Force Field Peak State ------------ > --- POWER ------------ Deuterium Engine > --- PROPULSION ------- Light Treads Advanced Treads > --- UTILITY ---------- Improved Heat Sink Improved Heat Sink Huge Storage Unit Hardened Heavy Armor Plating > --- WEAPON ----------- Plasma Cannon Improved Assault Rifle Gauss Rifle > --- INVENTORY -------- Improved Ion Engine Medium Matter Pod Advanced Visual Processing Unit Seismic Detector Heavy Armor Plating Graphene Brace High-powered Shotgun Improved Grenade Launcher Hammer [Rating: 35] Favorites ----------- Power Improved Ion Engine Engine Improved Ion Engine Power Core Nuclear Core Propulsion Light Treads Treads Light Treads Wheel Wheel Flight Unit Xenon Bombardment Thruster Utility Improved Heat Sink Device Improved Heat Sink Storage Huge Storage Unit Processor Improved Signal Interpreter Protection Heavy Armor Plating Weapon Gauss Rifle Energy Gun Heavy EM Shotgun Energy Cannon Plasma Cannon Ballistic Gun Gauss Rifle Ballistic Cannon Battle Cannon Launcher Improved Grenade Launcher Special Weapon Mining Laser Impact Weapon Makeshift Hammer Slashing Weapon Scythe Build | -11 -10 -10 -10 -8 -7 -7 -7 -7 -6 ------- Run | Yrd Mat Min Sub Mat Fac Low Low Dat Pro Slots Evolved 6 | . . . . 4 2 . . . . Power . | . . . . . . . . . . Propulsion 2 | . . . . 2 . . . . . Utility 3 | . . . . 2 1 . . . . Weapon 1 | . . . . . 1 . . . . Parts Attached 75 | 7 4 7 4 41 2 2 7 . 1 Power 15 | 1 1 1 2 8 1 . 1 . . Engine 10 | 1 1 1 2 4 1 . . . . Core 5 | . . . . 4 . . 1 . . Reactor . | . . . . . . . . . . Propulsion 18 | 2 1 1 1 11 . 1 1 . . Treads 16 | 2 1 1 1 10 . 1 . . . Leg . | . . . . . . . . . . Wheel 1 | . . . . 1 . . . . . Hover . | . . . . . . . . . . Flight 1 | . . . . . . . 1 . . Utility 15 | 2 . 1 . 8 1 1 1 . 1 Device 5 | 1 . 1 . 3 . . . . . Storage 3 | 1 . . . 2 . . . . . Processor 2 | . . . . . . . 1 . 1 Hackware . | . . . . . . . . . . Protection 5 | . . . . 3 1 1 . . . Artifact . | . . . . . . . . . . Weapon 27 | 2 2 4 1 14 . . 4 . . Energy Gun 3 | . . . . 3 . . . . . Energy Cannon 7 | . . . . 7 . . . . . Ballistic Gun 11 | 2 2 3 . 3 . . 1 . . Ballistic Cannon 1 | . . . 1 . . . . . . Launcher 2 | . . . . 1 . . 1 . . Special Weapon 1 | . . 1 . . . . . . . Impact Weapon 1 | . . . . . . . 1 . . Slashing Weapon 1 | . . . . . . . 1 . . Piercing Weapon . | . . . . . . . . . . Special Melee Weapon . | . . . . . . . . . . Unidentified Prototypes 6 | . . . . 6 . . . . . Parts Lost 35 | . 1 1 1 15 6 2 6 . 3 Power 5 | . . . . 3 1 . 1 . . Propulsion 12 | . 1 1 1 6 2 . . . 1 Utility 8 | . . . . 3 2 . 2 . 1 Weapon 10 | . . . . 3 1 2 3 . 1 Highest Loss Streak 6 | . 1 1 1 3 2 1 6 . 3 To Critical Strikes . | . . . . . . . . . . Average Backups 8 | 1 6 7 7 9 10 7 9 1 1 Power . | . 1 1 . . . . . 1 1 Propulsion . | . . . . . . . . . . Utility 3 | . 3 3 3 3 5 4 3 . . Weapon 3 | . 1 3 4 5 3 3 6 . . Tool/Special . | . . . . . . . . . . Unused Backups 16 | . 1 1 . 5 . . 8 . 1 Power . | . . . . . . . . . . Propulsion 1 | . . . . 1 . . . . . Utility 6 | . 1 . . . . . 4 . 1 Weapon 9 | . . 1 . 4 . . 4 . . Tool/Special . | . . . . . . . . . . Average Slot Usage (%) 78 | . 97 94 94 90 73 68 49 30 35 Engine 8 | . 14 14 14 2 6 7 6 . . Core 1 | . . . . 5 . . . . . Treads 16 | . 25 22 22 31 12 8 . . . Device 14 | . 14 14 14 16 15 15 13 . . Storage 9 | . 14 14 14 9 7 7 6 . . Protection 5 | . . . . 8 6 6 6 . . Energy Cannon 3 | . . . . 10 9 4 . . . Ballistic Gun 14 | . 28 27 18 4 10 15 13 . . Ballistic Cannon 1 | . . . 9 1 . . . . . Peak Build Rating 35 | 7 7 11 13 32 35 28 28 14 15 Average Rating 21 | 6 6 10 11 25 30 27 23 14 14 On Entrance 14 | . 7 7 11 10 29 21 28 14 14 Naked Turns 3 | . . . . . . . 3 . . Heaviest Build 125 | 12 15 16 17 111 125 118 111 5 5 Greatest Support 84 | 40 40 40 40 84 42 43 43 6 6 Greatest Overweight (x) 36 | . . . . 11 11 5 36 . 1 Average Overweight (x) 1 | . . . . . 6 4 7 . . Largest Inventory Capacity 25 | 8 8 8 8 25 25 25 25 5 5 Average Capacity 17 | 7 8 8 8 15 25 25 23 5 5 Most Carried 15 | 5 8 8 8 15 14 11 11 1 3 Average Carried 8 | 1 6 7 7 10 11 7 9 1 1 Final Capacity 25 | 8 8 8 8 25 25 25 5 5 5 Final Carried 13 | 3 8 8 8 13 10 11 1 1 2 Class Distribution -------------------- 40% | Scavenger-Mutant 30% | Scavenger-Tank 28% | Mutant Dominant Class ---------------- Mutant | -10/Materials Scavenger-Mutant | -10/Mines Mutant | -10/Subcaves Mutant | -8/Materials Scavenger-Tank | -7/Factory Scavenger-Tank | -7/Lower Caves Scavenger-Mutant | -7/Lower Caves Derelict-Mutant | -7/Data Miner Derelict-Mutant | -6/Proximity Caves Resources | -11 -10 -10 -10 -8 -7 -7 -7 -7 -6 ----------- Run | Yrd Mat Min Sub Mat Fac Low Low Dat Pro Matter Collected 2726 | 338 307 320 236 1118 27 273 107 . . Remotely . | . . . . . . . . . . Salvage Created 4124 | 209 454 275 81 2341 468 250 46 . . Parts 220 | 20 34 11 4 116 19 15 1 . . Haulers Intercepted 4 | . 1 . . 3 . . . . . Recyclers Shooed 2 | . 1 . . 1 . . . . . Parts Field Recycled . | . . . . . . . . . . Retrieved Matter . | . . . . . . . . . . Parts Self-Destructed 18 | . . . 11 . . 5 2 . . Prevented . | . . . . . . . . . . Kills | -11 -10 -10 -10 -8 -7 -7 -7 -7 -6 ------- Run | Yrd Mat Min Sub Mat Fac Low Low Dat Pro Combat Hostiles Destroyed 84 | . 11 9 3 47 8 5 1 . . Guns 37 | . 11 9 1 10 4 2 . . . Cannons 40 | . . . 2 33 4 1 . . . AOE 4 | . . . . 1 . 2 1 . . Classes Destroyed 16 | 3 4 1 1 5 1 1 . . . Worker 5 | 1 . 1 . 3 . . . . . Builder 1 | . . . . 1 . . . . . Tunneler 8 | 6 . . . 2 . . . . . Hauler 4 | . 1 . . 3 . . . . . Recycler 1 | 1 . . . . . . . . . Mechanic 1 | . . . . . 1 . . . . Watcher 6 | . 1 . . 4 1 . . . . Swarmer 14 | . 3 3 . 8 . . . . . Grunt 45 | . 8 4 . 22 7 3 1 . . Brawler 1 | . . . . 1 . . . . . Sentry 13 | . . 1 . 10 1 1 . . . Specialist 4 | . . . . 4 . . . . . Hunter 1 | . . . . 1 . . . . . Heavy 1 | . . . . 1 . . . . . Subdweller 3 | . . . 3 . . . . . . Mutant 1 | . . . . . . 1 . . . Best Kill Streak 5 | 2 3 3 1 5 4 4 1 . . Combat Bots Only 4 | . 3 3 1 4 2 4 1 . . Max Kills in Single Turn 2 | 1 1 1 1 2 2 1 1 . . Gunslinging . | . . . . . . . . . . Exploded 1 | . . . . 1 . 1 1 . . Melee . | . . . . . . . . . . Uniques/NPCs Destroyed 1 | . . 1 . . . . . . . YI-UF0 (-10/Mines) Combat | -11 -10 -10 -10 -8 -7 -7 -7 -7 -6 -------- Run | Yrd Mat Min Sub Mat Fac Low Low Dat Pro Hostile Shots Fired 749 | . 63 36 11 322 136 28 128 . 25 Missed 259 | . 22 10 3 103 45 10 58 . 8 Hits 490 | . 41 26 8 219 91 18 70 . 17 Melee 8 | . . . . . . 4 4 . . Projectile 482 | . 41 26 8 219 91 14 66 . 17 AOE 4 | . . 3 . . 1 . . . . Critical Strikes 14 | . . 2 . 7 1 2 . . 2 Damage Taken 6889 | . 445 348 167 3286 1133 517 658 . 335 Core 1322 | . 40 84 19 477 198 42 217 . 245 Absorbed by Shields . | . . . . . . . . . . Core Remaining (%) 51 | 100 . . 42 13 . . . . . Volleys Fired 350 | 17 56 24 21 179 29 10 14 . . Largest 3 | 2 2 2 2 2 3 3 2 . . Hottest 160 | 40 40 100 56 160 160 131 62 . . Shots Fired 693 | 34 112 42 36 352 75 25 17 . . Gun 378 | 34 112 36 17 100 43 20 16 . . Cannon 301 | . . . 19 248 32 2 . . . Launcher 8 | . . . . 4 . 3 1 . . Special 6 | . . 6 . . . . . . . Kinetic 451 | 34 112 36 36 154 43 20 16 . . Thermal 234 | . . 6 . 194 32 2 . . . Explosive 7 | . . . . 4 . 3 . . . Electromagnetic 1 | . . . . . . . 1 . . Robot Hit Streak 32 | 9 8 9 6 17 16 32 6 . . Robot Miss Streak 5 | 3 5 3 2 4 2 . 1 . . Penetration Max 1 | . . . . 1 . . . . . Secondary Targets 2 | . 2 . . . . . . . . Max Gunslinging Chain 1 | . 1 . . . . . . . . Shots Hit Robots 448 | 21 71 29 15 223 53 16 15 . 5 Core Hits 191 | 9 28 16 5 94 21 15 2 . 1 Critical Kills 1 | . . . . 1 . . . . . Critical Parts Destroyed 1 | 1 . . . . . . . . . Critical Strikes 9 | 1 . . . 5 . . . . 3 Meltdown 1 | . . . . 1 . . . . . Destroy 1 | 1 . . . . . . . . . Blast 4 | . . . . 4 . . . . . Sever 3 | . . . . . . . . . 3 Melee Attacks 6 | . . . . . . . 1 . 5 Impact 2 | . . . . . . . 1 . 1 Slashing 4 | . . . . . . . . . 4 Piercing . | . . . . . . . . . . Sneak Attacks . | . . . . . . . . . . Combat Hostiles . | . . . . . . . . . . Follow-up Attacks 1 | . . . . . . . . . 1 Damage Inflicted 9621 | 248 869 466 268 5581 1162 494 363 . 170 Guns 3976 | 248 869 442 109 1248 553 246 261 . . Cannons 4887 | . . . 159 4069 607 52 . . . Explosions 513 | . . . . 264 . 196 53 . . Melee 219 | . . . . . . . 49 . 170 Ramming 2 | . . . . . 2 . . . . Kinetic 5009 | 248 869 442 268 2122 553 246 261 . . Thermal 3878 | . . 24 . 3195 607 52 . . . Explosive 460 | . . . . 264 . 196 . . . Electromagnetic 53 | . . . . . . . 53 . . Impact 81 | . . . . . . . 49 . 32 Slashing 138 | . . . . . . . . . 138 Piercing . | . . . . . . . . . . Highest Corruption 1 | . 1 1 1 . . . . . . Average Corruption 1 | . 1 1 1 . . . . . . Corruption Purged . | . . . . . . . . . . Corruption Blocked . | . . . . . . . . . . Effects 22 | . 1 10 11 . . . . . . Message Errors 3 | . 1 1 1 . . . . . . Matter Fused 5 | . . 3 2 . . . . . . Heat Flow Errors 5 | . . 1 4 . . . . . . Energy Discharges 2 | . . 2 . . . . . . . Data Loss (minor) 4 | . . 2 2 . . . . . . Data Loss (major) 3 | . . 1 2 . . . . . . Overload Shots . | . . . . . . . . . . Overflow Damage 44 | . . . . 44 . . . . . Projectiles 42 | . . . . 42 . . . . . Explosions 2 | . . . . 2 . . . . . Melee . | . . . . . . . . . . Knockbacks 6 | . . . 2 4 . . . . . Impact . | . . . . . . . . . . Kinetic 5 | . . . 2 3 . . . . . Secondary 1 | . . . . 1 . . . . . Self-Inflicted Damage 111 | . . . . 26 . 85 . . . Shots 4 | . . . . 1 . 3 . . . Rammed 1 | . . . . . 1 . . . . Targets Rammed 1 | . . . . . 1 . . . . Kicked . | . . . . . . . . . . Crushed . | . . . . . . . . . . Highest Temperature 432 | . 9 171 259 432 63 20 . . . Average Temperature 68 | . 7 29 113 83 16 11 . . . Received Heat Transfer 2361 | . 207 141 . 1251 459 63 192 . 48 Effects 1 | . . . . 1 . . . . . Shutdowns 1 | . . . . 1 . . . . . Siege Activations . | . . . . . . . . . . Martial Activations . | . . . . . . . . . . Shielding Activations . | . . . . . . . . . . Robots Disrupted . | . . . . . . . . . . Combat Hostiles . | . . . . . . . . . . Robots Corrupted . | . . . . . . . . . . Combat Hostiles . | . . . . . . . . . . Parts Fried . | . . . . . . . . . . Impact Corruptions . | . . . . . . . . . . Robots Melted 3 | . . . . 3 . . . . . Combat Hostiles 3 | . . . . 3 . . . . . Parts Melted 13 | . . . . 12 1 . . . . Heat Transferred 7505 | . . 50 . 6155 1200 100 . . . Parts Sabotaged . | . . . . . . . . . . Parts Stolen 2 | . . . . . . . 2 . . Parts Stripped . | . . . . . . . . . . Power Chain Reactions . | . . . . . . . . . . Alert | -11 -10 -10 -10 -8 -7 -7 -7 -7 -6 ------- Run | Yrd Mat Min Sub Mat Fac Low Low Dat Pro Maximum Alert Level 2 | . . . . 2 1 . . . . Low Security (%) 63 | 100 100 100 . 39 . . . . . Level 1 16 | . . . . 19 100 . . . . Level 2 19 | . . . . 40 . . . . . Level 3 . | . . . . . . . . . . Level 4 . | . . . . . . . . . . Level 5 . | . . . . . . . . . . High Security . | . . . . . . . . . . Max Security . | . . . . . . . . . . Peak Influence 680 | 10 95 79 . 680 308 . . . . Initial 308 | . . 9 . . 308 . . . . Average 169 | 2 21 7 . 301 269 . . . . Influence Increases 2319 | 40 289 195 . 1437 228 80 50 . . Destroy 0b10 Robot/C 1580 | . 220 160 . 940 160 80 20 . . Destroy 0b10 Robot/NC 130 | 40 10 5 . 65 10 . . . . Destroy Leader 360 | . 44 30 . 244 42 . . . . Successful Hack 8 | . . . . 8 . . . . . Disable Machine 45 | . . . . 45 . . . . . Destroy Structure 91 | . . . . 90 1 . . . . Lose Combat Pursuer 105 | . 15 . . 45 15 . 30 . . Influence Decreases 2319 | 40 263 219 2 759 652 326 48 10 . Entered New Map 496 | . . 17 2 . 370 95 2 10 . Time Decay 1573 | 40 263 202 . 609 222 211 26 . . Lost Part 250 | . . . . 150 60 20 20 . . Squads Dispatched 15 | . 2 . . 9 4 . . . . Investigation 5 | . . . . 2 3 . . . . Extermination 1 | . . . . . 1 . . . . Reinforcement 7 | . 2 . . 5 . . . . . Assault . | . . . . . . . . . . Garrison 2 | . . . . 2 . . . . . Intercept . | . . . . . . . . . . Searches Triggered . | . . . . . . . . . . Construction Impeded . | . . . . . . . . . . Haulers Reinforced . | . . . . . . . . . . Active Scanning Responses . | . . . . . . . . . . Cargo Convoy Interrupts . | . . . . . . . . . . Stealth | -11 -10 -10 -10 -8 -7 -7 -7 -7 -6 --------- Run | Yrd Mat Min Sub Mat Fac Low Low Dat Pro Distress Signals 6 | . . . . 6 . . . . . Communications Jammed . | . . . . . . . . . . Distress Signals . | . . . . . . . . . . Times Spotted 140 | . 26 10 3 67 14 6 13 . 1 Peak Tracking Total 7 | . 4 3 2 6 4 5 7 . 1 Tactical Retreats 8 | . 1 1 . 3 1 . 2 . . Traps | -11 -10 -10 -10 -8 -7 -7 -7 -7 -6 ------- Run | Yrd Mat Min Sub Mat Fac Low Low Dat Pro Traps Triggered 2 | . 1 . . 1 . . . . . Indirectly . | . . . . . . . . . . Trap Hack Attempts . | . . . . . . . . . . Triggered . | . . . . . . . . . . Disarmed . | . . . . . . . . . . Reprogrammed . | . . . . . . . . . . Reused . | . . . . . . . . . . Traps Extracted . | . . . . . . . . . . Installed . | . . . . . . . . . . Triggered . | . . . . . . . . . . Machines | -11 -10 -10 -10 -8 -7 -7 -7 -7 -6 ---------- Run | Yrd Mat Min Sub Mat Fac Low Low Dat Pro Machines Disabled 5 | . . . . 3 . 2 . . . Max in Single Turn 2 | . . . . 2 . 1 . . . Garrison Access 1 | . . . . 1 . . . . . Machines Repaired . | . . . . . . . . . . Machines Dismantled . | . . . . . . . . . . Machines Sabotaged . | . . . . . . . . . . Overloaded Fab Kills . | . . . . . . . . . . Hacking | -11 -10 -10 -10 -8 -7 -7 -7 -7 -6 --------- Run | Yrd Mat Min Sub Mat Fac Low Low Dat Pro Machines Accessed 14 | . 1 . 1 4 3 1 . 4 . Terminals 7 | . 1 . . 3 3 . . . . Fabricators . | . . . . . . . . . . Repair Stations . | . . . . . . . . . . Recycling Units . | . . . . . . . . . . Scanalyzers . | . . . . . . . . . . Garrison Access 1 | . . . . 1 . . . . . Total Hacks 49 | . 2 . 1 8 6 1 . 31 . Successful 35 | . . . 1 2 . 1 . 31 . Failed 14 | . 2 . . 6 6 . . . . Catastrophic 4 | . . . . 1 3 . . . . Database Lockouts . | . . . . . . . . . . Manual 9 | . . . . 6 3 . . . . Terminals 15 | . 2 . . 7 6 . . . . Fabricators . | . . . . . . . . . . Repair Stations . | . . . . . . . . . . Recycling Units . | . . . . . . . . . . Scanalyzers . | . . . . . . . . . . Garrison Access 1 | . . . . 1 . . . . . Terminal Hacks 34 | . . . 1 1 . 1 . 31 . Record 11 | . . . . . . . . 11 . Part Schematic 13 | . . . . . . . . 13 . Robot Schematic 4 | . . . . . . . . 4 . Prototype ID Bank 3 | . . . . . . . . 3 . Open Door 2 | . . . 1 . . 1 . . . Branch Access Points 1 | . . . . 1 . . . . . Fabricator Hacks . | . . . . . . . . . . Repair Station Hacks . | . . . . . . . . . . Recycling Unit Hacks . | . . . . . . . . . . Scanalyzer . | . . . . . . . . . . Garrison Access Hacks 1 | . . . . 1 . . . . . Seal Access 1 | . . . . 1 . . . . . Unauthorized Hacks . | . . . . . . . . . . Terminals . | . . . . . . . . . . Fabricators . | . . . . . . . . . . Repair Stations . | . . . . . . . . . . Recycling Units . | . . . . . . . . . . Scanalyzers . | . . . . . . . . . . Garrison Access . | . . . . . . . . . . Data Cores Recovered . | . . . . . . . . . . Used . | . . . . . . . . . . Hacking Detections 5 | . . . . 2 3 . . . . Full Trace Events 5 | . . . . 2 3 . . . . Feedback Events . | . . . . . . . . . . Feedback Blocked . | . . . . . . . . . . Robot Schematics Acquired 4 | . . . . . . . . 4 . Robots Built . | . . . . . . . . . . Authchips . | . . . . . . . . . . Time . | . . . . . . . . . . Total Robot Build Rating . | . . . . . . . . . . Part Schematics Acquired 13 | . . . . . . . . 13 . Parts Built . | . . . . . . . . . . Authchips . | . . . . . . . . . . Time . | . . . . . . . . . . Total Part Build Rating . | . . . . . . . . . . Parts Repaired . | . . . . . . . . . . Time . | . . . . . . . . . . Parts Recycled . | . . . . . . . . . . Recycled Matter . | . . . . . . . . . . Retrieved Matter . | . . . . . . . . . . Retrieved Components . | . . . . . . . . . . Parts Scanalyzed . | . . . . . . . . . . Part Schematics Acquired . | . . . . . . . . . . Parts Damaged . | . . . . . . . . . . Bothacking | -11 -10 -10 -10 -8 -7 -7 -7 -7 -6 ------------ Run | Yrd Mat Min Sub Mat Fac Low Low Dat Pro Used RIF Installer . | . . . . . . . . . . Robots Hacked . | . . . . . . . . . . Non-combat . | . . . . . . . . . . Combat . | . . . . . . . . . . Robot Hacks Applied . | . . . . . . . . . . Relay Couplers Released . | . . . . . . . . . . Fabnet Peak Effective % . | . . . . . . . . . . Robots Rewired . | . . . . . . . . . . Allies Hacked . | . . . . . . . . . . Hacks Repelled . | . . . . . . . . . . Allies | -11 -10 -10 -10 -8 -7 -7 -7 -7 -6 -------- Run | Yrd Mat Min Sub Mat Fac Low Low Dat Pro Total Allies 1 | . . . . . . . . . 1 Largest Group 1 | . . . . . . . . . 1 Highest-Rated Group 96 | . . . . . . . . . 96 Highest-Rated Ally 96 | . . . . . . . . . 96 Total Orders . | . . . . . . . . . . Ally Attacks 6 | . . . . . . . . . 6 Total Damage 150 | . . . . . . . . . 150 Kills . | . . . . . . . . . . Allies Corrupted . | . . . . . . . . . . Allies Melted . | . . . . . . . . . . Intel | -11 -10 -10 -10 -8 -7 -7 -7 -7 -6 ------- Run | Yrd Mat Min Sub Mat Fac Low Low Dat Pro Active Infowar (turns) 5145 | 180 941 1678 1777 569 . . . . . Seismic 5145 | 180 941 1678 1777 569 . . . . . Robot Analysis Total . | . . . . . . . . . . Derelict Logs Recovered 5 | . . 1 1 . . 1 2 . . Drone Launches . | . . . . . . . . . . Drone Recoveries . | . . . . . . . . . . Exploration | -11 -10 -10 -10 -8 -7 -7 -7 -7 -6 ------------- Run | Yrd Mat Min Sub Mat Fac Low Low Dat Pro Turns Passed 15136 | 230 941 1678 1777 3065 467 5424 1415 39 100 Spaces Moved 5559 | 120 467 936 1015 1213 111 1107 328 98 164 Core 260 | 23 . . . . . . 235 . 2 Treads 4868 | 97 467 936 1015 1174 64 1107 8 . . Legs . | . . . . . . . . . . Wheels 86 | . . . . 39 47 . . . . Hover . | . . . . . . . . . . Flight 345 | . . . . . . . 85 98 162 Fastest Speed 40 | 50 160 160 160 158 230 320 40 40 40 Average Speed 243 | 138 160 160 160 186 324 486 416 40 40 Slowest Speed 1850 | 160 160 160 160 245 640 560 1850 40 100 Overloaded Moves . | . . . . . . . . . . Propulsion Burnouts . | . . . . . . . . . . Robots Hopped . | . . . . . . . . . . Potential Cave-ins . | . . . . . . . . . . Cave-ins Triggered . | . . . . . . . . . . Exploration Rate (%) 57 | 5 74 99 64 84 3 96 62 70 21 Regions Visited 9 Branch Regions 6 Pre-discovered Areas 5 | . . 2 . . . 1 1 1 . Known Exits Taken 2 | . . . . . . . 1 1 . Unknown Exits Taken 7 | 1 1 1 1 1 1 1 . . . Scrap Searched 7 | . . 1 1 . . 2 2 . 1 Spaces Dug . | . . . . . . . . . . Terrain Destroyed 115 | . . . . 93 . 22 . . . Melee . | . . . . . . . . . . Projectile 59 | . . . . 59 . . . . . AOE 56 | . . . . 34 . 22 . . . Terrain Rammed . | . . . . . . . . . . Walls Destroyed . | . . . . . . . . . . Machines Disabled . | . . . . . . . . . . Actions | -11 -10 -10 -10 -8 -7 -7 -7 -7 -6 --------- Run | Yrd Mat Min Sub Mat Fac Low Low Dat Pro Total 6508 | 152 555 1063 1133 1675 153 1126 361 97 193 Wait 387 | . 16 87 87 167 8 . . . 22 Move 5550 | 119 466 935 1014 1212 110 1106 327 97 164 Hop . | . . . . . . . . . . Pick Up 70 | 9 9 3 2 34 1 6 4 . 2 Fast Attach 18 | 1 1 . . 16 . . . . . Attach 41 | 6 . 1 . 19 3 4 7 . 1 Detach 1 | . . . . . . . 1 . . Swap 31 | . 3 8 5 14 1 . . . . Drop 54 | . 4 5 4 34 . . 7 . . Fire 350 | 17 56 24 21 179 29 10 14 . . Melee 5 | . . . . . . . 1 . 4 Ram . | . . . . . . . . . . Kick . | . . . . . . . . . . Crush 1 | . . . . . 1 . . . . Escape Stasis . | . . . . . . . . . . Rewire . | . . . . . . . . . . Trap . | . . . . . . . . . . Miscellaneous . | . . . . . . . . . . Route ------- -11/Scrapyard -10/Materials (discovered 3 exits: [*Mat x2] / [*Min]) -10/Mines (discovered 4 exits: [*Mat x2] / [*Exi] / *Sub) -10/Subcaves (discovered 2 exits: *Mat x2) -8/Materials (discovered 2 exits: *Fac x2) -7/Factory -7/Lower Caves -7/Lower Caves (discovered 2 exits: [*Fac] / *Dat) -7/Data Miner -6/Proximity Caves History --------- Turn | Location | Event 3 | -11/Scrapyard | Discovered new exit (range 15) 231 | -11/Scrapyard | Entered Materials 308 | -10/Materials | Build established: Mutant 542 | -10/Materials | Discovered new exit (range 5) 849 | -10/Materials | Discovered new exit (range 7) 1031 | -10/Materials | Discovered new exit (range 11) 1172 | -10/Materials | Entered Mines 1269 | -10/Mines | A weapon hastily lodged in a ceiling crevice suddenly fell to the ground 1402 | -10/Mines | Deemed a non-threat by the Exiles lab entrance 1402 | -10/Mines | Discovered new exit (range 5) 1429 | -10/Mines | Joined a pair of Derelicts in attacking an 0b10 outpost 1500 | -10/Mines | Learned location of Zion (-6) 1572 | -10/Mines | Discovered new exit (range 9) 1711 | -10/Mines | Destroyed YI-UF0 1761 | -10/Mines | Build established: Scavenger-Mutant 2172 | -10/Mines | Discovered new exit (range 16) 2239 | -10/Mines | Learned location of Storage (-9) 2811 | -10/Mines | Discovered new exit (range 3) 2850 | -10/Mines | Entered Subcaves 2940 | -10/Subcaves | Discovered new exit (range 14) 3354 | -10/Subcaves | A swath of the cavern ceiling suddenly collapsed 3529 | -10/Subcaves | A swath of the cavern ceiling suddenly collapsed 3693 | -10/Subcaves | Shifting Twisted Machinery released Sub. Beam Cannon 3696 | -10/Subcaves | Shifting Twisted Machinery released Sub. Laser 3716 | -10/Subcaves | Build established: Mutant 3946 | -10/Subcaves | Core integrity fell below 50% 4013 | -10/Subcaves | Visited 4L-MR0's lab 4521 | -10/Subcaves | Discovered new exit (range 13) 4627 | -10/Subcaves | Entered Materials 4627 | -8/Materials | Evolved 4 slots: Propulsion x2, Utility x2 5225 | -8/Materials | Discovered new exit (range 10) 5800 | -8/Materials | Build established: Scavenger-Mutant 5997 | -8/Materials | Garrison activated, responded to threat 6693 | -8/Materials | Core integrity fell below 50% 6921 | -8/Materials | Build established: Mutant 7296 | -8/Materials | Core integrity fell below 20% 7328 | -8/Materials | Lost 3 parts (1p1n1u) 7400 | -8/Materials | Discovered new exit (range 7) 7592 | -8/Materials | Build established: Scavenger-Mutant 7692 | -8/Materials | Entered Factory 7692 | -7/Factory | Evolved 2 slots: Utility x1, Weapon x1 7978 | -7/Factory | Discovered new exit (range 15) 8159 | -7/Factory | Entered Lower Caves 8276 | -7/Lower Caves | Build established: Scavenger-Tank 11512 | -7/Lower Caves | Attracted the attention of an 0b10 outpost 12445 | -7/Lower Caves | Attacked by a delusional Derelict stockpiling parts 12745 | -7/Lower Caves | Build established: Scavenger-Mutant 13241 | -7/Lower Caves | Learned location of Extension (-6) 13273 | -7/Lower Caves | Discovered new exit (range 4) 13583 | -7/Lower Caves | Entered another Lower Caves area 13782 | -7/Lower Caves | Discovered new exit (range 10) 14824 | -7/Lower Caves | Attracted the attention of an 0b10 checkpoint 14856 | -7/Lower Caves | Core integrity fell below 50% 14880 | -7/Lower Caves | Lost 6 parts (1p2u3w) 14892 | -7/Lower Caves | Identified exit to Data Miner 14954 | -7/Lower Caves | Found DCF Scrap (15 items) 14971 | -7/Lower Caves | Attacked by a faux Warlord 14998 | -7/Lower Caves | Entered Data Miner 14998 | -7/Data Miner | Discovered new exit (range 6) 15007 | -7/Data Miner | Identified exit to Proximity Caves 15012 | -7/Data Miner | Met Data Miner 15019 | -7/Data Miner | Learned location of Section 7 (-2) 15019 | -7/Data Miner | Acquired the access code to Warlord's prototype stash 15026 | -7/Data Miner | Received God Mode back door access code from Data Miner 15037 | -7/Data Miner | Entered Proximity Caves 15091 | -6/Proximity Caves | Spotted B-75 Beast 15124 | -6/Proximity Caves | Escorted by Enhanced Grunt 15135 | -6/Proximity Caves | Core integrity fell below 20% 15137 | -6/Proximity Caves | Destroyed by B-75 Beast with Heavy Machine Gun Last Messages --------------- 15041_ Acquired Force Field. 15043_ Acquired Targeting Computer. 15080_ A derelict emerges from the shadows: "Hey! In the mood for some fun?" 15090_ 08-VJA(c): "Looks like you're headed in the direction of 0b10." 15105_ 08-VJA(c): "I've been working on a little something, and it might be of use to you." 15122_ 08-VJA(c) destroyed. 15124_ Enhanced Grunt: "Protecting LRC-V3." 15128_ Xenon Bombardment Thruster destroyed. 15128_ Knocked back. 15131_ B-75 Beast Rnf. Deuterium Engine severed. 15131_ Mak. Hammer follow-up attack on B-75 Beast. 15131_ Mak. Hammer destroyed. 15133_ B-75 Beast Imp. Medium Treads severed. 15134_ Knocked back. 15136_ B-75 Beast Med. Reflective Plating severed. 15137_ Imp. Signal Interpreter destroyed. 15137_ Critical hit (Blast). 15137_ Knocked back. Map ----- +----------------------------------------------------+ | #?????# ##? #?????????????????????? | | ?????## ## ?????????????????????? | | ###### ?????????????????????? | | ## #?????????????????????? | | ## ##### #?????????????????????? | | # ## ##????? ??????????????????????? | | # ######???????? ???????????????????????? | | # #####?????????????? ????????????????????????? | | # ##???????????????????????????????????????????? | | # ##????????????????????????????????????????????? | | # #####?????????????????????????????????????????? | | # ## ##????????????????????????????????????????? | | # ###??????????????????????????????????????? | | #### #??????????????????????????????????????? | | ???# ##??????????????????????????????????????? | | ???# ##??????????????##??????????????????????? | | ???## ##????????????? #??????????????????????? | | ????### #?????????#### #??????????????????????? | | ??????## #####?###### ## #??????????????????????? | | ???????# ##;### ## ########## ????????????? | | ???????# ## ???????????? | | ???????# !% ## ?????????????? | | ???????## ###g #????????????????????? | | ????????###?## ##????????????????????? | | ?????????????#; %;#?????????????????????? | | ?????????????## % @#??????????????????????? | | ??????????????# = #??????????????????????? | | ??????????????# ;;;BB#??????????????????????? | | ?????????????# ###BB #?????????????????????? | | ?????????????# #?# ???????????????????? | | ?????????????###### ##?# ????????????????? | | ??????????????????###??# ##???????????????? | | ??????????????????????? ## ##????????????????? | | ??????????????????????? #?##?????????????????? | | ??????????????????????? #????????????????????? | | ?????????????????????? ????????????????????? | | ?????????????????????? ????????????????????? | | ?????????????????????? #; ???????????????????? | | ?????????????????????? #?; ???????????????????? | | ????????????????????? #?? ??????????????????? | | ?????????????????????##??? ??????????????????? | | ?????????????????????????? ????????????????????? | | ?????????????????????????????????????????????????? | | ?????????????????????????????????????????????????? | | ?????????????????????????????????????????????????? | | ?????????????????????????????????????????????????? | | ?????????????????????????????????????????????????? | | ?????????????????????????????????????????????????? | | ?????????????????????????????????????????????????? | | ?????????????????????????????????????????????????? | +----------------------------------------------------+ Best States ------------- Heat Dissipation 62 Energy Generation 15 Energy Capacity 275 Matter Stores 300 Matter Capacity 300 Sight Range 16 Terrain Scan Density 10 Armor Coverage 600 Evasion (%) 62 Targeting Accuracy 5 Recoil Reduction 4 Item Schematics ----------------- Combat Drone Bay | -7/Data Miner | Free Lgt. Regenerative Plating | -7/Data Miner | Free Cld. Cesium-ion Thruster | -7/Data Miner | Free Force Rifle | -7/Data Miner | Free Thermal Defense Suite | -7/Data Miner | Free Imp. Focal Shield | -7/Data Miner | Free Nuclear Pulse Array | -7/Data Miner | Free Disruptor Cannon | -7/Data Miner | Free Flexi-carbon Leg | -7/Data Miner | Free Adv. Recoil Stabilizer | -7/Data Miner | Free Arm. Medium Treads | -7/Data Miner | Free Imp. System Guard | -7/Data Miner | Free Imp. Remote Force Field | -7/Data Miner | Free Robot Schematics ------------------ H-66 Slayer | -7/Data Miner | Free R-10 Processor | -7/Data Miner | Free I-36 Angel | -7/Data Miner | Free A-15 Conveyor | -7/Data Miner | Free Fabricated ------------ Nothing Repaired ---------- Nothing Alien Tech Used ----------------- None Achievements -------------- None Challenges ------------ None Game ------ Seed BoreMicrowarpRedistributor Manual? 0 Play Time 00:52:49 Cumulative 92.7 hours Start 2025.07.15 @ 10:43:43 End 2025.07.15 @ 11:35:26 Sessions 1 Manual Loads 0 Difficulty Rogue Special Mode None Game No. 151 Rogue 151 Adventurer 0 Explorer 0 Win Type - Total 1 Types 1/0/0/0/0/0/0/0/0/0 Lore% 62 Gallery% 51 Achievement% 46 Wizard Run 0 Options --------- Layout 0 ASCII 0 Keyboard 0 Movement Mouse Keybinds 0 Fullscreen 1 Font 16/SmallcapsGlow Map View 75x55 Zoom Use 0% Tactical HUD 1 Map Filters NONE Filters NONE Steam 1 RUN: 88770331-2a0a-48fa-b144-ef4ed610d64a